Cogmind - Beta 16 @@@ ROGUE MODE // 2025.11.08 @ 17:56:02 Player: khaki-45e Result: Destroyed by Y-45 Defender with Beam Rifle Performance ------------- Evolutions (1) 500 Regions Visited (2) 400 Robots Destroyed (31) 155 Value Destroyed (666) 666 Prototype IDs (7) 140 Alien Tech Used (0) 0 Bonus (0) 0 TOTAL SCORE: 1861 Bonus ------- None Cogmind --------- Core Integrity 0/400 Matter 290/300 Energy 240/240 System Corruption 0% Temperature Cool (97) Movement Rolling (100) Location -9/Materials Parts ------- > --- POWER (1) -------- Nuclear Core > --- PROPULSION (2) --- Compact Wheel Compact Wheel > --- UTILITY (4) ------ Small Storage Unit Light Armor Plating > --- WEAPON (2) ------- Improved Medium Laser Heavy Mace > --- INVENTORY (8) ---- Heavy Ion Engine Cooled Ion Engine Nuclear Core Improved Heat Sink Improved Terrain Scanner Peak State ------------ > --- POWER ------------ Nuclear Core > --- PROPULSION ------- Hover Unit Hover Unit > --- UTILITY ---------- Small Storage Unit Weight Redist. System Seismic Detector Hacking Suite > --- WEAPON ----------- Light Assault Rifle Heavy Mace > --- INVENTORY -------- Nuclear Core Light Nuclear Core Hover Unit Hover Unit Hover Unit Improved Heat Sink Improved Terrain Scanner [Rating: 17] Favorites ----------- Power Nuclear Core Engine Light Ion Engine Power Core Nuclear Core Propulsion Hover Unit Leg Aluminum Leg Wheel Compact Wheel Hover Unit Hover Unit Utility Small Storage Unit Device Seismic Detector Storage Small Storage Unit Hackware Hacking Suite Protection Light Armor Plating Weapon Light Assault Rifle Energy Gun Improved Medium Laser Ballistic Gun Light Assault Rifle Impact Weapon Heavy Mace Build | -11 -10 -9 ------- Run | Yrd Mat Mat Slots Evolved 2 | . . 2 Power . | . . . Propulsion . | . . . Utility 2 | . . 2 Weapon . | . . . Parts Attached 32 | 6 7 19 Power 8 | 1 2 5 Engine 4 | 1 2 1 Core 4 | . . 4 Reactor . | . . . Propulsion 12 | 2 4 6 Treads . | . . . Leg 3 | 2 . 1 Wheel 2 | . . 2 Hover 7 | . 4 3 Flight . | . . . Utility 7 | 2 . 5 Device 2 | 1 . 1 Storage 2 | 1 . 1 Processor . | . . . Hackware 1 | . . 1 Protection 2 | . . 2 Artifact . | . . . Weapon 5 | 1 1 3 Energy Gun 1 | . . 1 Energy Cannon . | . . . Ballistic Gun 3 | 1 1 1 Ballistic Cannon . | . . . Launcher . | . . . Special Weapon . | . . . Impact Weapon 1 | . . 1 Slashing Weapon . | . . . Piercing Weapon . | . . . Special Melee Weapon . | . . . Unidentified Prototypes 2 | . . 2 Parts Lost 17 | . 2 15 Power 4 | . 1 3 Propulsion 7 | . 1 6 Utility 4 | . . 4 Weapon 2 | . . 2 Highest Loss Streak 5 | . 1 5 To Critical Strikes . | . . . Average Backups 5 | 2 6 5 Power 2 | . 1 2 Propulsion 1 | . 2 . Utility 2 | . 2 2 Weapon . | . . . Tool/Special . | . . . Unused Backups 4 | . . 4 Power 2 | . . 2 Propulsion . | . . . Utility 2 | . . 2 Weapon . | . . . Tool/Special . | . . . Average Slot Usage (%) 75 | . 99 64 Engine 4 | . 13 . Core 6 | . . 9 Leg 2 | . 5 . Hover 12 | . 22 7 Device 10 | . 14 8 Storage 11 | . 14 11 Hackware 3 | . . 5 Protection 2 | . . 3 Ballistic Gun 12 | . 27 5 Impact Weapon 6 | . . 9 Peak Build Rating 17 | 6 8 17 Average Rating 10 | 3 7 11 On Entrance 4 | . 6 7 Avg Prop Armor Cover (%) . | . . . Naked Turns . | . . . Heaviest Build 21 | 13 14 21 Greatest Support 32 | 20 20 32 Greatest Overweight (x) 5 | 1 1 5 Average Overweight (x) . | . . . Largest Inventory Capacity 8 | 8 8 8 Average Capacity 7 | 7 8 8 Most Carried 8 | 6 8 8 Average Carried 5 | 2 6 5 Final Capacity 8 | 8 8 8 Final Carried 8 | 3 8 5 Class Distribution -------------------- 95% | Mutant 4% | Scavenger-Mutant Dominant Class ---------------- Mutant | -10/Materials Mutant | -9/Materials Resources | -11 -10 -9 ----------- Run | Yrd Mat Mat Matter Collected 665 | 209 224 232 Remotely . | . . . Salvage Created 940 | 11 239 690 Parts 39 | 5 18 16 Haulers Intercepted 2 | . 2 . Recyclers Shooed . | . . . Parts Field Recycled . | . . . Retrieved Matter . | . . . Parts Self-Destructed . | . . . Prevented . | . . . Parts Restored . | . . . Kills | -11 -10 -9 ------- Run | Yrd Mat Mat Combat Hostiles Destroyed 21 | . 2 19 Melee 5 | . . 5 Guns 5 | . 2 3 Classes Destroyed 10 | 1 4 5 Worker 2 | . . 2 Builder 1 | . 1 . Tunneler 1 | 1 . . Hauler 2 | . 2 . Recycler 1 | . . 1 Operator 2 | . 1 1 Watcher 1 | . . 1 Swarmer 7 | . . 7 Grunt 12 | . 2 10 Sentry 2 | . . 2 Best Kill Streak 6 | 1 3 6 Combat Bots Only 5 | . 2 5 Max Kills in Single Turn 1 | 1 1 1 Gunslinging . | . . . Exploded . | . . . Melee 1 | . . 1 Uniques/NPCs Destroyed . | . . . Combat | -11 -10 -9 -------- Run | Yrd Mat Mat Hostile Shots Fired 208 | . 29 179 Missed 56 | . 9 47 Hits 152 | . 20 132 Projectile 152 | . 20 132 Critical Strikes 2 | . . 2 Damage Taken 1633 | . 290 1343 Core 469 | . 55 414 Absorbed by Shields . | . . . Core Remaining (%) 89 | 100 78 . Volleys Fired 67 | 1 27 39 Largest 2 | 1 2 1 Hottest 56 | 20 40 56 Shots Fired 93 | 1 53 39 Gun 93 | 1 53 39 Cannon . | . . . Launcher . | . . . Special . | . . . Kinetic 89 | 1 53 35 Thermal 4 | . . 4 Explosive . | . . . Electromagnetic . | . . . Robot Hit Streak 7 | 1 3 7 Robot Miss Streak 4 | . 3 4 Penetration Max . | . . . Secondary Targets . | . . . Shots Hit Robots 101 | 1 26 74 Core Hits 34 | 1 16 17 Critical Kills . | . . . Critical Parts Destroyed 11 | . . 11 Critical Strikes 12 | . . 12 Burn 1 | . . 1 Smash 11 | . . 11 Melee Attacks 80 | . . 80 Impact 80 | . . 80 Slashing . | . . . Piercing . | . . . Sneak Attacks 4 | . . 4 Combat Hostiles . | . . . Follow-up Attacks . | . . . Damage Inflicted 2706 | 13 307 2386 Guns 534 | 13 282 239 Cannons . | . . . Explosions . | . . . Melee 2147 | . . 2147 Ramming 25 | . 25 . Kinetic 464 | 13 282 169 Thermal 70 | . . 70 Explosive . | . . . Electromagnetic . | . . . Impact 2147 | . . 2147 Slashing . | . . . Piercing . | . . . Highest Corruption . | . . . Average Corruption . | . . . Corruption Purged . | . . . Corruption Blocked . | . . . Overload Shots . | . . . Overflow Damage 743 | . . 743 Projectiles . | . . . Explosions . | . . . Melee 743 | . . 743 Knockbacks 14 | . . 14 Impact 13 | . . 13 Kinetic . | . . . Secondary 1 | . . 1 Self-Inflicted Damage 12 | . 12 . Shots . | . . . Rammed 1 | . 1 . Targets Rammed 1 | . 1 . Kicked . | . . . Crushed . | . . . Highest Temperature 88 | . 26 88 Average Temperature 12 | . 9 23 Received Heat Transfer 549 | . 156 393 Siege Activations . | . . . Martial Activations . | . . . Shielding Activations . | . . . Robots Disrupted . | . . . Combat Hostiles . | . . . Robots Corrupted 13 | . . 13 Combat Hostiles 11 | . . 11 Parts Fried 13 | . . 13 Impact Corruptions 29 | . . 29 Robots Melted . | . . . Combat Hostiles . | . . . Parts Melted . | . . . Heat Transferred 222 | . . 222 Parts Sabotaged . | . . . Parts Stolen . | . . . Parts Stripped . | . . . Power Chain Reactions . | . . . Alert | -11 -10 -9 ------- Run | Yrd Mat Mat Maximum Alert Level . | . . . Low Security (%) 100 | 100 100 100 Level 1 . | . . . Level 2 . | . . . Level 3 . | . . . Level 4 . | . . . Level 5 . | . . . High Security . | . . . Max Security . | . . . Peak Influence 97 | 5 67 97 Initial 5 | . . 5 Average 25 | . 8 35 Influence Increases 736 | 5 143 588 Destroy 0b10 Robot/C 420 | . 40 380 Destroy 0b10 Robot/NC 50 | 5 20 25 Destroy Leader 106 | . 14 92 Successful Hack 19 | . 9 10 Destroy Structure 6 | . . 6 Partial Spotted 45 | . . 45 Lose Combat Pursuer 90 | . 60 30 Influence Decreases 652 | 5 128 519 Entered New Map 10 | . . 10 Time Decay 505 | 5 111 389 Lost Part 137 | . 17 120 Squads Dispatched 5 | . 1 4 Investigation 3 | . 1 2 Extermination . | . . . Reinforcement 2 | . . 2 Assault . | . . . Garrison . | . . . Intercept . | . . . Searches Triggered . | . . . Construction Impeded . | . . . Haulers Reinforced . | . . . Active Scanning Responses . | . . . Cargo Convoy Interrupts . | . . . Stealth | -11 -10 -9 --------- Run | Yrd Mat Mat Distress Signals 2 | . . 2 Communications Jammed . | . . . Distress Signals . | . . . Times Spotted 50 | . 18 32 Peak Tracking Total 7 | . 7 7 Tactical Retreats 4 | . 2 2 Traps | -11 -10 -9 ------- Run | Yrd Mat Mat Traps Triggered . | . . . Indirectly . | . . . Trap Hack Attempts . | . . . Triggered . | . . . Disarmed . | . . . Reprogrammed . | . . . Reused . | . . . Traps Extracted . | . . . Installed . | . . . Triggered . | . . . Machines | -11 -10 -9 ---------- Run | Yrd Mat Mat Machines Disabled . | . . . Max in Single Turn . | . . . Machines Repaired . | . . . Machines Dismantled . | . . . Machines Sabotaged . | . . . Overloaded Fab Kills . | . . . Hacking | -11 -10 -9 --------- Run | Yrd Mat Mat Machines Accessed 10 | . 5 5 Terminals 9 | . 5 4 Fabricators . | . . . Repair Stations . | . . . Recycling Units . | . . . Scanalyzers 1 | . . 1 Garrison Access . | . . . Total Hacks 24 | . 13 11 Successful 8 | . 4 4 Failed 15 | . 9 6 Catastrophic 5 | . 4 1 Database Lockouts 1 | . . 1 Manual . | . . . Terminals 22 | . 13 9 Fabricators . | . . . Repair Stations . | . . . Recycling Units . | . . . Scanalyzers 2 | . . 2 Garrison Access . | . . . Terminal Hacks 7 | . 4 3 Robot Analysis 1 | . . 1 Prototype ID Bank 3 | . 2 1 Branch Access Points 1 | . 1 . Locate Traps 1 | . . 1 Registered Prototypes 1 | . 1 . Fabricator Hacks . | . . . Repair Station Hacks . | . . . Recycling Unit Hacks . | . . . Scanalyzer 1 | . . 1 Retrieve Study 1 | . . 1 Garrison Access Hacks . | . . . Unauthorized Hacks . | . . . Terminals . | . . . Fabricators . | . . . Repair Stations . | . . . Recycling Units . | . . . Scanalyzers . | . . . Garrison Access . | . . . Data Cores Recovered 1 | . 1 . Used . | . . . Hacking Detections 7 | . 5 2 Full Trace Events 4 | . 2 2 Feedback Events . | . . . Feedback Blocked . | . . . Robot Schematics Acquired . | . . . Robots Built . | . . . Authchips . | . . . Time . | . . . Total Robot Build Rating . | . . . Part Schematics Acquired . | . . . Parts Built . | . . . Authchips . | . . . Time . | . . . Total Part Build Rating . | . . . Part Studies Acquired 1 | . . 1 Parts Repaired . | . . . Time . | . . . Parts Recycled . | . . . Recycled Matter . | . . . Retrieved Matter . | . . . Retrieved Components . | . . . Parts Scanalyzed . | . . . Part Schematics Acquired . | . . . Parts Damaged . | . . . Bothacking | -11 -10 -9 ------------ Run | Yrd Mat Mat Used RIF Installer . | . . . Robots Hacked . | . . . Non-combat . | . . . Combat . | . . . Robot Hacks Applied . | . . . Relay Couplers Released . | . . . Fabnet Peak Effective % . | . . . Robots Rewired . | . . . Allies Hacked . | . . . Hacks Repelled . | . . . Allies | -11 -10 -9 -------- Run | Yrd Mat Mat Total Allies . | . . . Largest Group . | . . . Highest-Rated Group . | . . . Highest-Rated Ally . | . . . Total Orders . | . . . Ally Attacks . | . . . Total Damage . | . . . Kills . | . . . Allies Corrupted . | . . . Allies Melted . | . . . Intel | -11 -10 -9 ------- Run | Yrd Mat Mat Active Infowar (turns) 940 | 19 628 293 Seismic 940 | 19 628 293 Robot Analysis Total 1 | . . 1 Derelict Logs Recovered . | . . . Drone Launches . | . . . Drone Recoveries . | . . . Exploration | -11 -10 -9 ------------- Run | Yrd Mat Mat Turns Passed 2069 | 95 628 1346 Spaces Moved 1177 | 64 540 573 Core 145 | 27 . 118 Treads . | . . . Legs 117 | 37 65 15 Wheels 56 | . . 56 Hover 859 | . 475 384 Flight . | . . . Fastest Speed 50 | 50 56 50 Average Speed 88 | 92 64 110 Slowest Speed 300 | 120 120 300 Overloaded Moves . | . . . Propulsion Burnouts . | . . . Robots Hopped . | . . . Potential Cave-ins . | . . . Cave-ins Triggered . | . . . Exploration Rate (%) 38 | 4 70 42 Regions Visited 2 Branch Regions . Pre-discovered Areas . | . . . Known Exits Taken . | . . . Unknown Exits Taken 2 | 1 1 . Scrap Searched . | . . . Spaces Dug 7 | . . 7 Terrain Destroyed 7 | . . 7 Melee 7 | . . 7 Projectile . | . . . AOE . | . . . Terrain Rammed . | . . . Walls Destroyed . | . . . Machines Disabled . | . . . Actions | -11 -10 -9 --------- Run | Yrd Mat Mat Total 1979 | 98 768 1113 Wait 575 | 20 176 379 Move 1175 | 63 539 573 Hop . | . . . Pick Up 35 | 8 12 15 Fast Attach 2 | 1 . 1 Attach 24 | 5 2 17 Detach . | . . . Swap 12 | . 6 6 Drop 8 | . 5 3 Fire 67 | 1 27 39 Melee 80 | . . 80 Ram 1 | . 1 . Kick . | . . . Crush . | . . . Escape Stasis . | . . . Rewire . | . . . Trap . | . . . Miscellaneous . | . . . Route ------- -11/Scrapyard -10/Materials (discovered 5 exits: *Mat x3 / *Min / [*Sub]) -9/Materials (discovered 1 exit: [*Min]) History --------- Turn | Location | Event 7 | -11/Scrapyard | Discovered new exit (range 15) 96 | -11/Scrapyard | Entered Materials 97 | -10/Materials | Met a group of wandering Federalists 161 | -10/Materials | Lost 3 allies 307 | -10/Materials | Build established: Mutant 384 | -10/Materials | Discovered new exit (range 8) 410 | -10/Materials | Identified exit to Mines 420 | -10/Materials | Discovered new exit (range 4) 452 | -10/Materials | Discovered new exit (range 5) 469 | -10/Materials | Discovered new exit (range 13) 480 | -10/Materials | Discovered new exit (range 11) 724 | -10/Materials | Entered another Materials area 724 | -9/Materials | Evolved 2 slots: Utility x2 1055 | -9/Materials | Lost 5 parts (1p2n1u1w) 1176 | -9/Materials | Central database locked down 1527 | -9/Materials | Core integrity fell below 50% 1549 | -9/Materials | Lost 3 parts (3u) 1959 | -9/Materials | Core integrity fell below 20% 2019 | -9/Materials | Discovered new exit (range 15) 2070 | -9/Materials | Destroyed by Y-45 Defender with Beam Rifle Last Messages --------------- Acquired Sml. Storage Unit. Acquired 20 matter. K-01 Serf collects debris. Acquired 10 matter. Acquired 2 matter. Dropped Sml. Storage Unit. Acquired 6 matter. K-01 Serf collects debris. Acquired 2 matter. K-01 Serf collects debris. EXIT=FOUND W-16 Scout suffers critical hit (Smash). Destroyed Hover Unit. W-16 Scout system corrupted by crushing effect. Visual Processing Unit fried. Lgt. Ion Engine fried. W-16 Scout destroyed. Acquired Prototype Energy Gun. Identified Imp. Medium Laser. Y-45 Defender suffers critical hit (Burn). Map ----- +----------------------------------------------------+ | | | | | | | | | | | | | | | | | | | | | | | | | | | | | | | | | | | | | | | ???????????????????????#####??????????????????? | | ???????????????????????] ??????????????????? | | ???????????????????????] "Y??????????????????? | | ???????????????????????? "???????????????????? | | ???????????????????????? ???????????????????? | | ??????????????????????###Y#???????????????????? | | ??????????????????????# @#?????####??????????? | | ??????????????????????# #?????"""#??????????? | | ???????????????#####??# #????"|||"##????????? | | ??????????????## ?# #????" ""#????????? | | ??????????????# ! ?# #???? #????????? | | ???????????????# # #???? < #????????? | | ???????????????# " "" #Y #???? #?????#??? | | ???????????????# "R"" + #???? #???? #??? | | ???????????????# """" # #???? #???? #??? | | ????????????????####### ##???# #???? #??? | | #############????????# ##### #### #??? | | #????????# #??? | | #????????# #?????? | | ??? #????????# #?????? | | ????????# #????????# ##### ####+??????? | | ?######## ###??????########### #??????????? | | ?# # # #????????# + +??????????? | | ?# + #????????#/ # #??????????? | | ?# # # #????????# #% #??????????? | | ?# # ###????????#######?# #??????????? | | ?# # #################### #??????????? | | ?# # #??????????? | | ?##+##### #??????????? | | ??# #???# %! #??????????? | | ?## ##### ###########+#########+##??????????? | +----------------------------------------------------+ Best States ------------- Heat Dissipation 28 Energy Generation 16 Energy Capacity 250 Matter Stores 300 Matter Capacity 300 Sight Range 16 Terrain Scan Density 10 Additional Mass Support 6 Armor Coverage 150 Evasion (%) 55 Offensive Hacking 10 Item Schematics ----------------- None Robot Schematics ------------------ None Fabricated ------------ Nothing Repaired ---------- Nothing Studied --------- Nuclear Core | -9/Materials | Hacked Alien Tech Used ----------------- None Achievements -------------- None Challenges ------------ None Game ------ Seed SapperMappingEngine Manual? 0 Play Time 00:31:19 Cumulative 17.7 hours Start 2025.11.08 @ 14:12:09 End 2025.11.08 @ 17:56:02 Sessions 1 Manual Loads 0 Difficulty Rogue Special Mode None Game No. 14 Rogue 14 Adventurer 0 Explorer 0 Win Type - Total 0 Types 0/0/0/0/0/0/0/0/0/0 Lore% 6 Gallery% 14 Achievement% 13 Wizard Run 0 Options --------- Layout 1 ASCII 0 Keyboard 0 Movement Mouse Keybinds 0 Fullscreen 0 Font 28/SmallcapsGlow Map View 50x35 Zoom Use 0% Tactical HUD 0 Map Filters NONE Filters NONE Steam 0 RUN: 45ff1f92-0d74-4c08-af8a-8f5cbe04e85b